bitfinex-derivatives/quotes_BTCF0:USTF0_20250814
["timestamp","ask_amount","ask_price","bid_price","bid_amount"]
[1755188030835,0.7632677,117860.0,117850.0,15.3864964]
[1755188031639,0.82366694,117860.0,117850.0,16.09449845]
[1755188031841,0.10206694,117860.0,117850.0,16.79979845]
[1755188032439,0.10206694,117860.0,117850.0,15.3864967]
[1755188032851,0.10206694,117860.0,117850.0,15.3872967]
[1755188033036,0.43650843,117870.0,117850.0,16.09449875]
[1755188033239,0.01952179,117870.0,117860.0,1.07985155]
[1755188033439,0.01952179,117870.0,117860.0,0.3718495]
[1755188034244,0.02052179,117870.0,117860.0,0.28704]
[1755188034545,0.46612409,117870.0,117860.0,0.28704]
[1755188034850,0.46712409,117870.0,117860.0,1.34996]
[1755188035246,0.61854409,117870.0,117860.0,1.35096]
[1755188035543,0.61954409,117870.0,117860.0,1.35096]
[1755188035851,1.40245457,117870.0,117860.0,1.27441]
[1755188036050,0.61954409,117870.0,117860.0,1.27441]
[1755188036242,1.32674614,117870.0,117860.0,1.27441]
[1755188036442,0.61954409,117870.0,117860.0,1.27441]
[1755188036642,0.61954409,117870.0,117860.0,1.34447]
[1755188037048,0.38232179,117870.0,117860.0,1.34447]
[1755188037254,0.46712409,117870.0,117860.0,1.34447]
[1755188037850,0.55004409,117870.0,117860.0,1.34447]
[1755188039145,0.53474179,117870.0,117860.0,1.34447]
[1755188039846,0.38232179,117870.0,117860.0,1.34447]
[1755188040352,0.38232179,117870.0,117860.0,1.4292795]
[1755188040848,0.02152179,117870.0,117860.0,1.4292795]
[1755188041053,0.02152179,117870.0,117860.0,2.13648155]
[1755188041258,0.48867259,117880.0,117870.0,0.19073]
[1755188041441,0.95249102,117880.0,117870.0,0.4229229]
[1755188041641,1.03728612,117880.0,117870.0,1.4780429]
[1755188042549,1.03828612,117880.0,117870.0,1.4790429]
[1755188042850,0.96257769,117880.0,117870.0,1.4790429]
[1755188043156,0.87878259,117880.0,117870.0,1.4800429]
[1755188043653,0.96357769,117880.0,117870.0,1.4800429]
[1755188044248,0.96357769,117880.0,117870.0,1.05712]
[1755188044453,1.75260835,117880.0,117870.0,1.26291]
[1755188044648,1.02648904,117880.0,117870.0,1.26291]
[1755188044858,1.02648904,117880.0,117870.0,1.33297]
[1755188044859,1.00496904,117880.0,117870.0,1.33297]
[1755188045155,1.65186248,117880.0,117870.0,1.33297]
[1755188045456,1.65186248,117880.0,117850.0,13.95]
[1755188045457,0.1176495,117860.0,117850.0,13.95]
[1755188045756,0.1176495,117860.0,117850.0,15.07274]
[1755188045757,0.96476615,117860.0,117850.0,15.07274]
[1755188045956,0.91520615,117860.0,117850.0,15.07274]
[1755188046558,0.47103665,117860.0,117850.0,15.07274]
[1755188046858,0.06234665,117860.0,117850.0,15.86855875]
[1755188047057,0.06234665,117860.0,117850.0,15.86775875]
[1755188047359,0.42414665,117860.0,117850.0,15.12339]
[1755188047661,0.42414665,117860.0,117850.0,15.3705467]
[1755188048454,0.42414665,117860.0,117850.0,16.07774875]
[1755188048850,0.06334665,117860.0,117850.0,16.07774875]
[1755188049054,0.003,117860.0,117850.0,16.07899717]
[1755188049248,0.4486095,117860.0,117850.0,15.28697842]
[1755188049448,0.4486095,117860.0,117850.0,14.23429842]
[1755188049654,0.5985295,117860.0,117850.0,15.28437842]
[1755188049853,0.4486095,117860.0,117850.0,15.28437842]
[1755188050451,0.6680295,117860.0,117850.0,15.28446531]
[1755188050659,0.8578595,117860.0,117850.0,15.28446531]
[1755188050856,0.9074195,117860.0,117850.0,15.28446531]
[1755188051047,0.9074195,117860.0,117850.0,15.2845522]
[1755188051251,1.6749682,117860.0,117850.0,15.2845522]
[1755188051454,0.96776615,117860.0,117850.0,15.2845522]
[1755188051759,0.96776615,117860.0,117850.0,15.2816322]
[1755188051760,1.61462155,117860.0,117850.0,15.2816322]
[1755188052156,0.9074195,117860.0,117850.0,15.2816322]
[1755188052356,1.61462155,117860.0,117850.0,15.2816322]
[1755188052556,1.61462155,117860.0,117850.0,15.28021]
[1755188052766,1.61462155,117860.0,117850.0,15.28171909]
[1755188052957,1.69032998,117860.0,117850.0,15.28171909]
[1755188053157,1.7100471,117860.0,117850.0,15.28044598]
[1755188053360,1.72878851,117860.0,117850.0,15.28044598]
[1755188053759,1.72798851,117860.0,117850.0,15.28044598]
[1755188054066,1.02078646,117860.0,117850.0,15.28044598]
[1755188054453,0.94507803,117860.0,117850.0,15.28044598]
[1755188054761,0.94507803,117860.0,117850.0,15.28053287]
[1755188055963,0.94507803,117860.0,117850.0,15.28061976]
[1755188056260,1.71279958,117860.0,117850.0,15.28061976]
[1755188056463,1.00559753,117860.0,117850.0,15.28070665]
[1755188056956,1.00559753,117860.0,117850.0,15.54360665]
[1755188057359,1.05603753,117860.0,117850.0,15.47354665]
[1755188057664,0.94507803,117860.0,117850.0,15.54360665]
[1755188057855,1.04507803,117860.0,117850.0,15.54360665]
[1755188058258,1.12992805,117860.0,117850.0,14.00250665]
[1755188058454,2.00683411,117860.0,117850.0,14.76821658]
[1755188058656,2.1126657,117860.0,117850.0,14.76821658]
[1755188058857,1.40546365,117860.0,117850.0,14.81386658]
[1755188059157,1.29963206,117860.0,117850.0,15.04626658]
[1755188059555,0.86094805,117860.0,117850.0,15.04626658]
[1755188059769,0.65384805,117860.0,117850.0,15.02635691]
[1755188060065,0.75384805,117860.0,117850.0,15.02635691]
[1755188060270,0.97326805,117860.0,117850.0,15.02635691]
[1755188060961,1.04885225,117860.0,117850.0,15.02643712]
[1755188061964,1.02282805,117860.0,117850.0,15.02643712]
[1755188062152,1.12864376,117860.0,117850.0,15.02643712]
[1755188062358,2.00554982,117860.0,117850.0,14.95637712]
[1755188062555,3.04234982,117860.0,117850.0,13.70766712]
[1755188062969,2.22933206,117860.0,117850.0,13.70766712]
[1755188063164,2.93653411,117860.0,117850.0,13.70766712]
[1755188063757,2.93553411,117860.0,117850.0,13.70566712]
[1755188063969,2.93753411,117860.0,117850.0,13.70566712]
[1755188064161,3.04330448,117860.0,117850.0,13.70566712]
[1755188064554,2.93753411,117860.0,117850.0,13.70566712]
[1755188065365,3.04245665,117860.0,117850.0,13.75144712]
[1755188065568,1.73747665,117860.0,117850.0,14.94942712]
[1755188065764,1.04794524,117860.0,117850.0,15.02061712]
[1755188065966,1.50472729,117860.0,117850.0,15.02061712]
[1755188066170,1.72230729,117860.0,117850.0,15.02061712]
[1755188066467,1.9067681,117860.0,117850.0,15.02061712]
[1755188066767,2.07647211,117860.0,117850.0,13.70266712]
[1755188066964,2.00096411,117860.0,117850.0,14.94942712]
[1755188067159,2.07647094,117860.0,117850.0,15.02061712]
[1755188067360,1.53627801,117860.0,117850.0,14.73594712]
[1755188067562,1.96937202,117860.0,117850.0,14.73594712]
[1755188067962,1.89387411,117860.0,117850.0,13.70266712]
[1755188068271,1.18667206,117860.0,117850.0,13.74844712]
[1755188068574,1.99959665,117860.0,117850.0,13.84733089]
[1755188069766,2.09387411,117860.0,117850.0,13.63385089]
[1755188069966,2.16935986,117860.0,117850.0,13.84733089]
[1755188070471,2.09387411,117860.0,117850.0,13.84733089]
[1755188070872,2.09467411,117860.0,117850.0,13.63385089]
[1755188071061,2.16935986,117860.0,117850.0,13.63385089]
[1755188071266,2.45467411,117860.0,117850.0,13.27305089]
[1755188071572,2.45467411,117860.0,117850.0,13.31883089]
[1755188071972,2.45467411,117860.0,117850.0,13.48653089]
[1755188072272,2.45467411,117860.0,117850.0,13.31883089]
[1755188072461,2.45467411,117860.0,117850.0,13.48653089]
[1755188072874,2.99297215,117860.0,117850.0,9.46214111]
[1755188073071,3.26835621,117860.0,117850.0,9.06914711]
[1755188073370,3.34943909,117860.0,117850.0,8.51441146]
[1755188073570,2.64143704,117860.0,117850.0,8.51441146]
[1755188073772,2.47253303,117860.0,117850.0,8.51441146]
[1755188073972,2.47253303,117860.0,117850.0,7.55536206]
[1755188074172,4.52579909,117860.0,117850.0,7.00905107]
[1755188074478,3.81859704,117860.0,117850.0,6.64825107]
[1755188074869,4.84903704,117860.0,117850.0,6.64825107]
[1755188075172,3.51291699,117860.0,117850.0,6.64825107]
[1755188075475,3.51291699,117860.0,117850.0,5.73498167]
[1755188075476,4.54235699,117860.0,117850.0,5.73498167]
[1755188075671,3.67045093,117860.0,117850.0,5.68920167]
[1755188075876,4.37765298,117860.0,117850.0,5.68920167]
[1755188076576,4.37765298,117860.0,117850.0,5.73498167]
[1755188076772,4.48209303,117860.0,117850.0,5.73498167]
[1755188077173,4.37641298,117860.0,117850.0,5.73498167]
[1755188077374,3.00056298,117860.0,117850.0,5.97387167]
[1755188077881,4.03160298,117860.0,117850.0,5.97387167]
[1755188078083,4.10757501,117860.0,117850.0,5.97387167]
[1755188078277,3.40037296,117860.0,117850.0,5.97387167]
[1755188078478,4.10757501,117860.0,117850.0,5.90505031]
[1755188078671,3.07605501,117860.0,117850.0,5.90505031]
[1755188078872,1.90169501,117860.0,117850.0,5.90585031]
[1755188079170,2.22697296,117860.0,117850.0,5.90585031]
[1755188079466,2.22757296,117860.0,117850.0,5.90585031]
[1755188079879,1.19449296,117860.0,117850.0,5.90585031]
[1755188080075,2.22757296,117860.0,117850.0,5.90585031]
[1755188080980,2.22757296,117860.0,117850.0,5.86285031]
[1755188081173,1.19449296,117860.0,117850.0,5.86285031]
[1755188081374,0.60869296,117860.0,117850.0,5.86285031]
[1755188081579,1.54129296,117860.0,117850.0,6.57005236]
[1755188081775,1.46629296,117860.0,117850.0,7.01813842]
[1755188081972,1.46629296,117860.0,117850.0,6.31093637]
[1755188082172,0.35820093,117860.0,117850.0,6.31093637]
[1755188082474,0.35820093,117860.0,117850.0,5.86285031]
[1755188082679,0.35820093,117860.0,117850.0,6.31093637]
[1755188082880,0.35820093,117860.0,117850.0,5.86285031]
[1755188083181,1.25051098,117860.0,117850.0,5.86205031]
[1755188083373,0.88971098,117860.0,117850.0,5.86205031]
[1755188083573,0.88771098,117860.0,117850.0,5.86205031]
[1755188084286,0.88271098,117860.0,117850.0,5.86205031]
[1755188084469,0.88671098,117860.0,117850.0,5.86305031]
[1755188084874,0.88271098,117860.0,117850.0,5.86205031]
[1755188085184,0.89071098,117860.0,117850.0,5.86205031]
[1755188086370,0.93652098,117860.0,117850.0,5.79086031]
[1755188086677,1.29732098,117860.0,117850.0,5.86205031]
[1755188087676,1.29755277,117860.0,117850.0,5.79086031]
[1755188087880,1.25174277,117860.0,117850.0,5.86205031]
[1755188088387,0.82591277,117860.0,117850.0,5.86205031]
[1755188088577,0.99853277,117860.0,117850.0,5.79322695]
[1755188088878,1.06619277,117860.0,117850.0,5.75022695]
[1755188089277,1.85255277,117860.0,117850.0,5.75022695]
[1755188089482,1.85191277,117860.0,117850.0,6.457429]
[1755188089682,1.85191277,117860.0,117850.0,5.75022695]
[1755188089885,1.85191277,117860.0,117850.0,6.457429]
[1755188090183,1.85191277,117860.0,117850.0,5.75022695]
[1755188090485,2.09219277,117860.0,117850.0,5.75022695]
[1755188090679,2.13800277,117860.0,117850.0,5.75022695]
[1755188090980,2.33445186,117860.0,117850.0,5.75022695]
[1755188091185,2.35140799,117860.0,117850.0,5.75022695]
[1755188091382,2.33445186,117860.0,117850.0,5.75022695]
[1755188091577,2.35140988,117860.0,117850.0,5.75022695]
[1755188091778,2.45140988,117860.0,117850.0,5.75022695]
[1755188091981,2.45140988,117860.0,117850.0,5.46555695]
[1755188092179,2.45140988,117860.0,117850.0,5.75022695]
[1755188092384,2.45140988,117860.0,117850.0,5.37671391]
[1755188092692,2.34549804,117860.0,117850.0,5.37671391]
[1755188093282,2.34549804,117860.0,117850.0,5.61560391]
[1755188093489,2.29704804,117860.0,117850.0,5.61560391]
[1755188093878,2.22938804,117860.0,117850.0,5.61560391]
[1755188094275,1.20602804,117860.0,117850.0,5.61560391]
[1755188094489,2.05504804,117860.0,117850.0,5.61560391]
[1755188095487,2.29015804,117860.0,117850.0,5.61560391]
[1755188095983,2.29015804,117860.0,117850.0,5.33093391]
[1755188096190,2.29015804,117860.0,117850.0,5.61093391]
[1755188096381,1.26851804,117860.0,117850.0,5.61093391]
[1755188096575,1.03340804,117860.0,117850.0,5.56793391]
[1755188096884,2.15891734,117860.0,117850.0,6.72322202]
[1755188097086,1.57335734,117860.0,117850.0,6.27593596]
[1755188097292,1.23719802,117860.0,117850.0,6.27593596]
[1755188097476,1.23719802,117860.0,117850.0,6.72402202]
[1755188097477,1.19704804,117860.0,117850.0,6.72402202]
[1755188097681,1.25509002,117860.0,117850.0,7.57254202]
[1755188098093,0.5304065,117870.0,117860.0,0.29962]
[1755188098387,1.6996965,117870.0,117860.0,0.30147665]
[1755188098588,1.94594652,117870.0,117860.0,0.29847665]
[1755188098787,2.01965652,117870.0,117860.0,0.29847665]
[1755188099184,2.01965652,117870.0,117860.0,0.25330665]
[1755188099185,2.12964582,117870.0,117860.0,0.25330665]
[1755188099487,2.12964582,117870.0,117860.0,0.00185665]
[1755188099488,2.83684787,117870.0,117860.0,0.00185665]
[1755188099684,2.83764787,117870.0,117860.0,0.00185665]
[1755188099886,0.28408,117860.0,117850.0,5.19919251]
[1755188100182,0.28408,117860.0,117850.0,5.27244251]
[1755188100183,0.64488,117860.0,117850.0,5.27244251]
[1755188100384,0.79555546,117860.0,117850.0,5.27244251]
[1755188100692,1.89967828,117860.0,117850.0,5.27244251]
[1755188101188,1.82470157,117860.0,117850.0,5.27244251]
[1755188101393,1.82470157,117860.0,117850.0,5.33359251]
[1755188101895,1.82570157,117860.0,117850.0,5.33459251]
[1755188102400,1.92670157,117860.0,117850.0,5.33559251]
[1755188103892,2.02670157,117860.0,117850.0,5.33559251]
[1755188104090,1.95100282,117860.0,117850.0,5.29259251]
[1755188104484,1.95100282,117860.0,117850.0,5.15819251]
[1755188104688,2.06100282,117860.0,117850.0,5.15819251]
[1755188104893,2.16698107,117860.0,117850.0,5.15819251]
[1755188105401,2.87498312,117860.0,117850.0,5.15819251]
[1755188105584,2.36778107,117860.0,117850.0,4.83319251]
[1755188105891,3.17598312,117860.0,117850.0,4.71846148]
[1755188106095,3.07000487,117860.0,117850.0,4.71846148]
[1755188106297,2.36280282,117860.0,117850.0,4.71846148]
[1755188106493,2.36280282,117860.0,117850.0,4.66846148]
[1755188106693,3.22068033,117860.0,117850.0,4.66846148]
[1755188107091,2.51267828,117860.0,117850.0,4.66846148]
[1755188107287,3.21988033,117860.0,117850.0,4.66846148]
[1755188107496,0.3608,117850.0,117780.0,0.64590703]
[1755188107691,0.4608,117800.0,117790.0,0.16128]
[1755188107891,1.7064,117800.0,117790.0,0.16128]
[1755188108196,1.79129324,117800.0,117790.0,0.28]
[1755188108396,1.86689068,117800.0,117790.0,0.28]
[1755188108596,1.79129324,117800.0,117790.0,0.28]
[1755188108999,1.79329324,117800.0,117790.0,0.281]
[1755188109197,0.77769324,117800.0,117790.0,0.2818]
[1755188109393,0.76769324,117800.0,117790.0,1.53032]
[1755188109594,0.76769324,117800.0,117790.0,2.01494703]
[1755188109595,0.38415451,117800.0,117790.0,2.01494703]
[1755188109901,0.70995451,117800.0,117790.0,2.01494703]
[1755188110103,0.70995451,117800.0,117790.0,1.87282908]
[1755188110294,0.70995451,117800.0,117790.0,1.16562703]
[1755188110495,0.65956183,117800.0,117790.0,0.681]
[1755188110694,0.71993228,117800.0,117790.0,0.6818]
[1755188110895,0.71993228,117800.0,117790.0,2.72214908]
[1755188111102,0.71993228,117800.0,117790.0,2.01494703]
[1755188111300,0.66256183,117800.0,117790.0,2.72134908]
[1755188111603,0.72293228,117800.0,117790.0,2.01494703]
[1755188111807,0.22676183,117800.0,117790.0,2.72214908]
[1755188111989,0.22676183,117800.0,117790.0,1.97194703]
[1755188112194,0.26159324,117800.0,117790.0,2.67914908]
[1755188112389,0.06037045,117810.0,117800.0,0.11872]
[1755188112591,0.18037045,117810.0,117800.0,0.51952]
[1755188112804,0.18037045,117810.0,117800.0,2.55986908]
[1755188113006,0.26526369,117810.0,117800.0,2.55986908]
[1755188113306,0.26526369,117810.0,117800.0,2.55906908]
[1755188113796,1.47991744,117820.0,117810.0,0.11952]
[1755188113797,0.43639744,117820.0,117810.0,0.11952]
[1755188114104,0.57977,117820.0,117810.0,0.58372703]
[1755188114304,0.66465604,117820.0,117810.0,1.27955205]
[1755188114505,0.82605604,117820.0,117810.0,0.57235]
[1755188114706,1.00165348,117820.0,117810.0,1.05597703]
[1755188114902,0.89025348,117820.0,117810.0,1.66507908]
[1755188115095,0.40488604,117820.0,117810.0,1.17945205]
[1755188115302,0.40488604,117820.0,117810.0,2.51259908]
[1755188115503,0.40488604,117820.0,117810.0,2.51339908]
[1755188115810,0.03739744,117830.0,117820.0,0.48542703]
[1755188116007,0.10583642,117850.0,117820.0,2.96696205]
[1755188116193,0.21,117850.0,117840.0,2.72274908]
[1755188116807,0.21,117850.0,117840.0,3.06462703]
[1755188117005,0.21,117850.0,117840.0,3.77182908]
[1755188117202,0.21,117850.0,117840.0,3.06362703]
[1755188117403,0.29485722,117850.0,117840.0,2.35914908]
[1755188117702,0.34682722,117850.0,117840.0,0.3628]
[1755188118004,0.29785722,117850.0,117840.0,2.36314908]
[1755188118303,0.213,117850.0,117840.0,1.65594703]
[1755188118605,0.29785722,117850.0,117840.0,2.36314908]
[1755188118808,0.113,117850.0,117840.0,1.65674703]
[1755188119101,0.113,117850.0,117840.0,1.85674703]
[1755188119306,0.113,117850.0,117840.0,2.56314908]
[1755188119507,0.113,117850.0,117840.0,1.85594703]
[1755188119802,0.113,117850.0,117840.0,2.56394908]
[1755188120107,0.113,117850.0,117840.0,2.56314908]
[1755188120314,0.111,117850.0,117840.0,2.56214908]
[1755188120801,0.212,117850.0,117840.0,2.72154703]
[1755188120995,0.212,117850.0,117840.0,2.72182703]
[1755188121198,0.34582722,117850.0,117840.0,1.65794703]
[1755188121394,0.34582722,117850.0,117840.0,2.72026703]
[1755188121594,0.34582722,117850.0,117840.0,1.66294703]
[1755188121796,0.50802722,117850.0,117840.0,1.21832]
[1755188122099,0.58073722,117850.0,117840.0,1.65794703]
[1755188122499,0.50722722,117850.0,117840.0,1.66294703]
[1755188122703,0.34582722,117850.0,117840.0,2.37014908]
[1755188122908,0.29685722,117850.0,117840.0,1.92552205]
[1755188123110,0.212,117850.0,117840.0,1.92552205]
[1755188123302,0.212,117850.0,117840.0,2.37014908]
[1755188123303,0.19685722,117850.0,117840.0,2.37014908]
[1755188123496,0.19685722,117850.0,117840.0,1.65794703]
[1755188123700,0.111,117850.0,117840.0,2.36414908]
[1755188123902,0.13897,117880.0,117840.0,1.85694703]
[1755188124209,0.39069364,117870.0,117860.0,0.3598]
[1755188124508,0.42583642,117870.0,117860.0,1.42348]
[1755188124807,0.22,117870.0,117860.0,3.64981105]
[1755188125012,0.12,117870.0,117860.0,3.64881105]
[1755188125200,0.2257485,117870.0,117860.0,3.64881105]
[1755188125402,0.2257485,117870.0,117860.0,3.64781105]
[1755188125604,0.12,117870.0,117860.0,3.60481105]
[1755188125799,0.19552878,117870.0,117860.0,3.60481105]
[1755188125998,0.121,117870.0,117860.0,3.60781105]
[1755188126408,0.121,117870.0,117860.0,2.900609]
[1755188126712,0.121,117870.0,117860.0,3.60781105]
[1755188126913,0.121,117870.0,117860.0,2.900609]
[1755188127111,0.122,117870.0,117860.0,2.902609]
[1755188127410,0.122,117870.0,117860.0,3.61061105]
[1755188127609,0.14895,117910.0,117890.0,0.24711826]
[1755188127814,0.16895,117910.0,117900.0,1.31115826]
[1755188128007,0.16895,117910.0,117900.0,1.85680967]
[1755188128211,0.16895,117910.0,117900.0,2.13890571]
[1755188128212,0.20481764,117910.0,117900.0,2.13890571]
[1755188128409,0.20481764,117910.0,117900.0,2.49870571]
[1755188128710,0.11,117910.0,117900.0,1.79150366]
[1755188128913,0.11,117910.0,117900.0,2.49770571]
[1755188129211,0.11,117910.0,117900.0,2.50070571]
[1755188129716,0.111,117910.0,117900.0,2.50270571]
[1755188129915,0.111,117910.0,117900.0,1.79550366]
[1755188130106,0.111,117910.0,117900.0,0.8950143]
[1755188130308,0.33322,117910.0,117900.0,1.35481604]
[1755188130514,0.48735404,117910.0,117900.0,0.3698]
[1755188130712,0.48735404,117910.0,117900.0,0.61691826]
[1755188130917,0.48735404,117910.0,117900.0,1.078]
[1755188131112,0.58735404,117910.0,117900.0,1.078]
[1755188131308,0.51803404,117910.0,117900.0,2.31041635]
[1755188131514,0.34576404,117910.0,117900.0,1.36309604]
[1755188131715,0.34576404,117910.0,117900.0,2.31741635]
[1755188131915,0.34576404,117910.0,117900.0,1.6102143]
[1755188132110,0.58655404,117910.0,117900.0,1.6102143]
[1755188132312,0.58735404,117910.0,117900.0,0.012]
[1755188132508,1.82498809,117910.0,117880.0,0.3608]
[1755188132708,0.28974,117890.0,117880.0,1.35037604]
[1755188132908,0.28974,117880.0,117870.0,1.429]
[1755188133219,0.28974,117870.0,117860.0,0.3608]
[1755188133517,0.50974,117870.0,117860.0,1.66813604]
[1755188133717,0.50974,117870.0,117860.0,2.62245635]
[1755188133918,0.59456843,117870.0,117860.0,1.9152543]
[1755188134118,0.59456843,117870.0,117860.0,2.62245635]
[1755188134521,0.52624843,117870.0,117860.0,2.62245635]
[1755188134906,0.59556843,117870.0,117860.0,0.60389604]
[1755188135106,0.59636843,117870.0,117860.0,1.07]
[1755188135316,0.69636843,117870.0,117860.0,1.07]
[1755188135711,0.69636843,117870.0,117820.0,0.43349]
[1755188135712,1.84351848,117870.0,117820.0,0.43349]
[1755188136019,1.84351848,117870.0,117820.0,0.23241]
[1755188136020,0.28974,117830.0,117820.0,0.23241]
[1755188136215,0.57005356,117830.0,117820.0,0.23241]
[1755188136413,0.18031356,117830.0,117820.0,0.52789826]
[1755188136620,0.65491078,117830.0,117820.0,0.23241]
[1755188136925,0.65491078,117830.0,117820.0,0.15972]
[1755188137422,0.65491078,117830.0,117820.0,0.48252826]
[1755188137816,0.41412078,117830.0,117820.0,0.25011826]
[1755188138019,0.75491078,117830.0,117820.0,0.16272]
[1755188138317,0.75491078,117830.0,117820.0,0.23541]
[1755188138318,0.65591078,117830.0,117820.0,0.23541]
[1755188138811,1.01771078,117830.0,117820.0,0.004]
[1755188139127,1.11772653,117830.0,117820.0,0.004]
[1755188139311,1.05739722,117830.0,117820.0,0.004]
[1755188139624,1.11772653,117830.0,117820.0,0.004]
[1755188139818,1.05739722,117830.0,117820.0,0.004]
[1755188140215,0.04895,117800.0,117790.0,0.52052]
[1755188140420,0.49974,117800.0,117790.0,0.47952826]
[1755188140720,0.49974,117800.0,117790.0,0.7616243]
[1755188140918,0.58461163,117800.0,117790.0,0.7616243]
[1755188141123,0.58461163,117800.0,117790.0,1.51719635]
[1755188141318,0.58461163,117800.0,117790.0,0.8099943]
[1755188141517,0.58561163,117800.0,117790.0,1.47382635]
[1755188141921,0.34482163,117800.0,117790.0,0.5342143]
[1755188142121,0.94641163,117800.0,117790.0,0.005]
[1755188142327,0.58561163,117800.0,117790.0,0.005]
[1755188142518,0.58561163,117800.0,117790.0,0.28578]
[1755188142718,0.58561163,117800.0,117790.0,0.16472]
[1755188142920,0.58561163,117800.0,117790.0,0.005]
[1755188143121,0.94641163,117800.0,117790.0,0.16472]
[1755188143321,0.58661163,117800.0,117790.0,1.27507809]
[1755188143522,0.58661163,117800.0,117790.0,1.52219635]
[1755188143925,0.58661163,117800.0,117790.0,1.88299635]
[1755188144329,0.58661163,117800.0,117790.0,0.8149943]
[1755188144525,0.94741163,117800.0,117790.0,0.005]
[1755188145226,0.58661163,117800.0,117790.0,0.005]
[1755188145432,0.94741163,117800.0,117790.0,0.005]
[1755188146029,0.94641163,117800.0,117780.0,0.86692205]
[1755188146226,0.65767163,117800.0,117790.0,0.003]
[1755188146635,0.87909163,117800.0,117790.0,0.003]
[1755188146841,0.94641163,117800.0,117790.0,0.003]
[1755188147224,1.04641163,117800.0,117790.0,0.003]
[1755188147532,1.29258433,117800.0,117790.0,0.003]
[1755188147729,0.28974,117770.0,117750.0,0.3608]
[1755188147930,0.38162568,117760.0,117750.0,2.69767809]
[1755188148136,0.45142,117760.0,117750.0,1.62967604]
[1755188148331,0.60465847,117760.0,117750.0,2.28850809]
[1755188148526,0.60465847,117760.0,117750.0,2.53562635]
[1755188148732,0.60465847,117760.0,117750.0,1.8284243]
[1755188149033,0.26386847,117760.0,117750.0,2.69767809]
[1755188149336,0.70465847,117760.0,117750.0,2.53562635]
[1755188149837,0.70565847,117760.0,117750.0,1.7587343]
[1755188150136,0.70565847,117760.0,117750.0,2.46593635]
[1755188150343,0.70565847,117760.0,117750.0,1.7587343]
[1755188150536,0.70565847,117760.0,117750.0,2.46593635]
[1755188150729,0.70565847,117760.0,117750.0,1.7587343]
[1755188150926,0.46486847,117760.0,117750.0,0.5322143]
[1755188151133,1.06645847,117760.0,117750.0,0.003]
[1755188151325,1.06745847,117760.0,117750.0,0.71020205]
[1755188151524,1.06745847,117760.0,117750.0,0.86992205]
[1755188151728,1.06745847,117760.0,117750.0,0.71020205]
[1755188152129,1.06745847,117760.0,117750.0,0.003]
[1755188152334,1.12747242,117760.0,117750.0,0.003]
[1755188152533,1.12747242,117760.0,117750.0,0.71020205]
[1755188152837,0.70665847,117760.0,117750.0,0.64589604]
[1755188153037,1.06745847,117760.0,117750.0,0.16272]
[1755188153234,0.70665847,117760.0,117750.0,0.6919343]
[1755188153740,0.70665847,117760.0,117750.0,1.8408643]
[1755188153941,0.70665847,117760.0,117750.0,2.54806635]
[1755188154131,0.76667242,117760.0,117750.0,2.54806635]
[1755188154645,0.96162242,117760.0,117750.0,0.003]
[1755188154940,1.13315242,117760.0,117750.0,0.003]
[1755188155238,1.13315242,117760.0,117750.0,0.44919604]
[1755188155239,0.77235242,117760.0,117750.0,0.44919604]
[1755188155435,0.71233847,117760.0,117750.0,0.7671843]
[1755188156026,0.71233847,117760.0,117750.0,0.6963143]
[1755188156232,0.77235242,117760.0,117750.0,0.6963143]
[1755188156432,1.30802447,117760.0,117750.0,0.003]
[1755188156631,1.13315242,117760.0,117750.0,0.003]
[1755188157836,1.13315242,117760.0,117730.0,0.3608]
[1755188157837,0.17153,117750.0,117730.0,0.3608]
[1755188158035,0.1,117740.0,117730.0,0.28209604]
[1755188158243,0.21,117740.0,117730.0,0.5292143]
[1755188158437,1.00293495,117740.0,117730.0,0.24711826]
[1755188158627,0.1,117710.0,117700.0,0.39639248]
[1755188158829,0.1,117710.0,117700.0,0.38980678]
[1755188158830,0.21,117710.0,117700.0,0.38980678]
[1755188159038,0.506,117710.0,117700.0,1.47976678]
[1755188159330,1.29813495,117710.0,117700.0,0.03559248]
[1755188159529,0.6909329,117710.0,117700.0,0.38980678]
[1755188159735,0.6909329,117710.0,117700.0,0.14268852]
[1755188159945,0.6909329,117710.0,117700.0,0.38980678]
[1755188160341,0.6909329,117710.0,117700.0,0.55390678]
[1755188160533,0.6909329,117710.0,117700.0,1.84843852]
[1755188160740,0.4444629,117710.0,117700.0,2.09555678]
[1755188161041,0.5919329,117710.0,117700.0,1.64750678]
[1755188161235,0.5919329,117710.0,117700.0,1.68660678]
[1755188161438,0.5919329,117710.0,117700.0,0.03559248]
[1755188161748,0.9527329,117710.0,117700.0,0.55390678]
[1755188161935,0.9537329,117710.0,117700.0,0.39703852]
[1755188162137,0.1969329,117710.0,117700.0,1.00495678]
[1755188162340,0.3464629,117710.0,117700.0,1.73871678]
[1755188162551,0.3464629,117710.0,117700.0,2.09951678]
[1755188162842,0.2969329,117710.0,117700.0,2.09951678]
[1755188163038,0.2969329,117710.0,117700.0,0.64415678]
[1755188163234,0.3464629,117710.0,117700.0,0.64415678]
[1755188163431,0.3464629,117710.0,117700.0,1.74399678]
[1755188163744,0.2969329,117710.0,117700.0,0.50648852]
[1755188163930,0.212,117710.0,117700.0,2.56488057]
[1755188164136,0.29695815,117710.0,117700.0,2.10479678]
[1755188164338,0.29695815,117710.0,117700.0,1.74399678]
[1755188164534,0.59295815,117710.0,117700.0,0.59600678]
[1755188164729,0.59295815,117710.0,117700.0,0.34888852]
[1755188164940,0.59295815,117710.0,117700.0,0.59600678]
[1755188165940,0.69295815,117710.0,117700.0,0.30978852]
[1755188166146,0.69295815,117710.0,117700.0,0.55690678]
[1755188166331,0.69295815,117710.0,117700.0,0.59600678]
[1755188166944,0.69295815,117710.0,117700.0,0.64415678]
[1755188167441,0.69295815,117710.0,117700.0,0.59600678]
[1755188167638,1.05375815,117710.0,117700.0,0.59600678]
[1755188167839,0.69295815,117710.0,117700.0,0.59600678]
[1755188168039,0.69295815,117710.0,117700.0,1.35135883]
[1755188168242,0.69295815,117710.0,117700.0,0.64415678]
[1755188168443,0.69295815,117710.0,117700.0,0.55690678]
[1755188168638,1.05375815,117710.0,117700.0,0.55690678]
[1755188168839,0.69295815,117710.0,117700.0,0.55690678]
[1755188169045,1.05375815,117710.0,117700.0,0.59600678]
[1755188169347,1.05375815,117710.0,117700.0,1.69572678]
[1755188169545,0.69295815,117710.0,117700.0,1.69572678]
[1755188169740,0.69295815,117710.0,117700.0,1.74387678]
[1755188170248,0.69295815,117710.0,117700.0,1.69572678]
[1755188171049,0.69295815,117710.0,117700.0,1.74387678]
[1755188172248,0.39695815,117710.0,117700.0,2.56476057]
[1755188172542,0.29695815,117710.0,117700.0,2.56476057]
[1755188172745,0.19695815,117710.0,117700.0,2.81187883]